Cogmind - Beta 14 @@@ ROGUE MODE // 2024.11.10 @ 17:20:03 Player: DrVerse Result: Destroyed by G-34 Mercenary with Small Laser Performance ------------- Evolutions (0) 0 Regions Visited (1) 200 Robots Destroyed (18) 90 Value Destroyed (436) 436 Prototype IDs (0) 0 Alien Tech Used (0) 0 Bonus (0) 0 TOTAL SCORE: 726 Bonus ------- None Cogmind --------- Core Integrity 0/250 Matter 500/500 Energy 100/100 System Corruption 3% Temperature Cool (6) Movement Walking (260) Ox2 Location -10/Materials Parts ------- > --- POWER (1) -------- (None) > --- PROPULSION (2) --- Aluminum Leg > --- UTILITY (2) ------ Large Storage Unit High-capacity Matter Pod > --- WEAPON (2) ------- Light Assault Rifle > --- INVENTORY (15) --- Ion Engine Ion Engine Ion Engine Light Ion Engine Light Ion Engine Aluminum Leg Wheel Flight Unit Heat Sink Medium Matter Pod (41) Signal Interpreter Tractor Beam Mining Laser Peak State ------------ > --- POWER ------------ Ion Engine > --- PROPULSION ------- Aluminum Leg Aluminum Leg > --- UTILITY ---------- Large Storage Unit Visual Processing Unit > --- WEAPON ----------- Particle Gun Assault Rifle > --- INVENTORY -------- Ion Engine Light Ion Engine Light Ion Engine Wheel Wheel Hover Unit Hover Unit Heat Sink Medium Matter Pod Signal Interpreter Tractor Beam Medium Laser Medium Laser Small Laser Mining Laser [Rating: 10] Favorites ----------- Power Ion Engine Engine Ion Engine Propulsion Aluminum Leg Leg Aluminum Leg Wheel Wheel Hover Unit Hover Unit Utility Large Storage Unit Device Heat Sink Storage Large Storage Unit Processor Visual Processing Unit Weapon Assault Rifle Energy Gun Particle Gun Ballistic Gun Assault Rifle Special Weapon Mining Laser Build | -11 -10 ------- Run | Yrd Mat Slots Evolved . | . . Power . | . . Propulsion . | . . Utility . | . . Weapon . | . . Parts Attached 26 | 5 21 Power 5 | 1 4 Engine 5 | 1 4 Core . | . . Reactor . | . . Propulsion 9 | 2 7 Treads . | . . Leg 5 | 2 3 Wheel 2 | . 2 Hover 2 | . 2 Flight . | . . Utility 6 | . 6 Device 1 | . 1 Storage 4 | . 4 Processor 1 | . 1 Hackware . | . . Protection . | . . Artifact . | . . Weapon 6 | 2 4 Energy Gun 3 | 1 2 Energy Cannon . | . . Ballistic Gun 2 | 1 1 Ballistic Cannon . | . . Launcher . | . . Special Weapon 1 | . 1 Impact Weapon . | . . Slashing Weapon . | . . Piercing Weapon . | . . Special Melee Weapon . | . . Unidentified Prototypes . | . . Parts Lost 7 | . 7 Power 1 | . 1 Propulsion 3 | . 3 Utility . | . . Weapon 3 | . 3 Highest Loss Streak 3 | . 3 To Critical Strikes . | . . Average Slot Usage (%) 97 | . 97 Engine 14 | . 14 Leg 23 | . 23 Wheel 3 | . 3 Device 2 | . 2 Storage 18 | . 18 Processor 4 | . 4 Energy Gun 18 | . 18 Ballistic Gun 8 | . 8 Special Weapon 1 | . 1 Peak Build Rating 10 | 5 10 Average Rating 8 | 3 8 On Entrance 2 | . 5 Naked Turns . | . . Heaviest Build 33 | 7 33 Greatest Support 20 | 20 20 Greatest Overweight (x) 2 | . 2 Average Overweight (x) . | . . Largest Inventory Capacity 15 | 5 15 Average Capacity 13 | 5 14 Most Carried 15 | 5 15 Average Carried 11 | 2 12 Final Capacity 15 | 5 15 Final Carried 13 | 4 13 Class Distribution -------------------- 59% | Mutant 40% | Scavenger-Mutant Dominant Class ---------------- Mutant | -10/Materials Resources | -11 -10 ----------- Run | Yrd Mat Matter Collected 779 | 265 514 Remotely . | . . Salvage Created 506 | 44 462 Parts 30 | 1 29 Haulers Intercepted . | . . Recyclers Shooed 1 | . 1 Parts Field Recycled . | . . Retrieved Matter . | . . Parts Self-Destructed . | . . Prevented . | . . Kills | -11 -10 ------- Run | Yrd Mat Combat Hostiles Destroyed 16 | 1 15 Guns 15 | 1 14 Cannons 1 | . 1 Classes Destroyed 4 | 1 3 Tunneler 1 | . 1 Watcher 1 | . 1 Swarmer 6 | . 6 Grunt 10 | 1 9 Best Kill Streak 6 | 1 6 Combat Bots Only 3 | 1 3 Max Kills in Single Turn 1 | 1 1 Gunslinging . | . . Exploded . | . . Melee . | . . Uniques/NPCs Destroyed . | . . Combat | -11 -10 -------- Run | Yrd Mat Hostile Shots Fired 141 | 6 135 Missed 42 | 4 38 Damage Taken 1039 | 23 1016 Core 259 | . 259 Absorbed by Shields . | . . Core Remaining (%) 100 | 100 . Volleys Fired 66 | 5 61 Largest 2 | 2 2 Hottest 140 | 70 140 Shots Fired 126 | 10 116 Gun 123 | 10 113 Cannon . | . . Launcher . | . . Special 3 | . 3 Kinetic 47 | 5 42 Thermal 79 | 5 74 Explosive . | . . Electromagnetic . | . . Robot Hit Streak 7 | 6 7 Robot Miss Streak 5 | 1 5 Penetration Max . | . . Secondary Targets 1 | . 1 Max Gunslinging Chain 1 | . 1 Shots Hit Robots 69 | 8 61 Core Hits 31 | 2 29 Critical Kills . | . . Critical Parts Destroyed . | . . Critical Strikes 2 | 1 1 Burn 2 | 1 1 Melee Attacks . | . . Impact . | . . Slashing . | . . Piercing . | . . Sneak Attacks . | . . Combat Hostiles . | . . Follow-up Attacks . | . . Damage Inflicted 890 | 98 792 Guns 858 | 98 760 Cannons . | . . Explosions . | . . Melee . | . . Ramming 8 | . 8 Kinetic 284 | 37 247 Thermal 598 | 61 537 Explosive . | . . Electromagnetic . | . . Impact . | . . Slashing . | . . Piercing . | . . Highest Corruption 3 | . 3 Average Corruption 2 | . 2 Corruption Purged . | . . Corruption Blocked . | . . Effects 11 | . 11 Message Errors 4 | . 4 Matter Fused 1 | . 1 Heat Flow Errors 1 | . 1 Energy Discharges 1 | . 1 Data Loss (minor) 1 | . 1 Data Loss (major) 1 | . 1 Alerts 1 | . 1 Weapon Failures 1 | . 1 Overload Shots . | . . Overflow Damage . | . . Projectiles . | . . Explosions . | . . Melee . | . . Knockbacks . | . . Impact . | . . Kinetic . | . . Secondary . | . . Self-Inflicted Damage . | . . Shots . | . . Rammed . | . . Targets Rammed 3 | . 3 Kicked 3 | . 3 Crushed . | . . Highest Temperature 340 | 57 340 Average Temperature 78 | 28 82 Received Heat Transfer 426 | 12 414 Siege Activations . | . . Robots Corrupted . | . . Combat Hostiles . | . . Parts Fried . | . . Impact Corruptions . | . . Robots Melted . | . . Combat Hostiles . | . . Parts Melted 3 | 1 2 Heat Transferred 1586 | 259 1327 Parts Sabotaged . | . . Parts Stolen . | . . Parts Stripped . | . . Power Chain Reactions . | . . Alert | -11 -10 ------- Run | Yrd Mat Peak Influence 170 | 20 170 Initial 13 | . 13 Average 53 | 2 58 Maximum Alert Level . | . . Low Security (%) 100 | 100 100 Level 1 . | . . Level 2 . | . . Level 3 . | . . Level 4 . | . . Level 5 . | . . High Security . | . . Max Security . | . . Squads Dispatched 5 | . 5 Investigation . | . . Extermination . | . . Reinforcement 5 | . 5 Assault . | . . Garrison . | . . Intercept . | . . Searches Triggered . | . . Construction Impeded . | . . Haulers Reinforced . | . . Active Scanning Responses . | . . Cargo Convoy Interrupts . | . . Stealth | -11 -10 --------- Run | Yrd Mat Distress Signals 1 | . 1 Communications Jammed . | . . Distress Signals . | . . Times Spotted 30 | 1 29 Peak Tracking Total 5 | 1 5 Tactical Retreats 1 | . 1 Traps | -11 -10 ------- Run | Yrd Mat Traps Triggered 2 | . 2 Indirectly . | . . Trap Hack Attempts . | . . Triggered . | . . Disarmed . | . . Reprogrammed . | . . Reused . | . . Traps Extracted . | . . Installed . | . . Triggered . | . . Machines | -11 -10 ---------- Run | Yrd Mat Machines Disabled . | . . Max in Single Turn . | . . Machines Repaired . | . . Machines Dismantled . | . . Machines Sabotaged . | . . Overloaded Fab Kills . | . . Hacking | -11 -10 --------- Run | Yrd Mat Machines Accessed 5 | . 5 Terminals 3 | . 3 Fabricators . | . . Repair Stations 1 | . 1 Recycling Units 1 | . 1 Scanalyzers . | . . Garrison Access . | . . Total Hacks 8 | . 8 Successful 4 | . 4 Failed 4 | . 4 Catastrophic 2 | . 2 Database Lockouts . | . . Manual . | . . Terminals 5 | . 5 Fabricators . | . . Repair Stations 2 | . 2 Recycling Units 1 | . 1 Scanalyzers . | . . Garrison Access . | . . Terminal Hacks 3 | . 3 Record 1 | . 1 Alert Level 1 | . 1 Registered Components 1 | . 1 Fabricator Hacks . | . . Repair Station Hacks 1 | . 1 Scan Component 1 | . 1 Recycling Unit Hacks . | . . Scanalyzer . | . . Garrison Access Hacks . | . . Unauthorized Hacks . | . . Terminals . | . . Fabricators . | . . Repair Stations . | . . Recycling Units . | . . Scanalyzers . | . . Garrison Access . | . . Data Cores Recovered . | . . Used . | . . Hacking Detections 5 | . 5 Full Trace Events . | . . Feedback Events . | . . Feedback Blocked . | . . Robot Schematics Acquired . | . . Robots Built . | . . Authchips . | . . Time . | . . Total Robot Build Rating . | . . Part Schematics Acquired . | . . Parts Built . | . . Authchips . | . . Time . | . . Total Part Build Rating . | . . Parts Repaired . | . . Time . | . . Parts Recycled . | . . Recycled Matter . | . . Retrieved Matter . | . . Retrieved Components . | . . Parts Scanalyzed . | . . Part Schematics Acquired . | . . Parts Damaged . | . . Bothacking | -11 -10 ------------ Run | Yrd Mat Used RIF Installer . | . . Robots Hacked . | . . Non-combat . | . . Combat . | . . Robot Hacks Applied . | . . Relay Couplers Released . | . . Fabnet Peak Effective % . | . . Robots Rewired . | . . Allies Hacked . | . . Hacks Repelled . | . . Allies | -11 -10 -------- Run | Yrd Mat Total Allies . | . . Largest Group . | . . Highest-Rated Group . | . . Highest-Rated Ally . | . . Total Orders . | . . Ally Attacks . | . . Total Damage . | . . Kills . | . . Allies Corrupted . | . . Allies Melted . | . . Intel | -11 -10 ------- Run | Yrd Mat Robot Analysis Total . | . . Derelict Logs Recovered . | . . Drone Launches . | . . Drone Recoveries . | . . Exploration | -11 -10 ------------- Run | Yrd Mat Turns Passed 1137 | 105 1032 Spaces Moved 544 | 80 464 Core 28 | 28 . Treads . | . . Legs 403 | 52 351 Wheels 102 | . 102 Hover 11 | . 11 Flight . | . . Fastest Speed 50 | 50 95 Average Speed 156 | 95 166 Slowest Speed 260 | 120 260 Overloaded Moves . | . . Propulsion Burnouts . | . . Robots Hopped . | . . Cave-ins Triggered . | . . Exploration Rate (%) 29 | 8 50 Regions Visited 1 Branch Regions . Pre-discovered Areas . | . . Known Exits Taken . | . . Unknown Exits Taken 1 | 1 . Scrap Searched . | . . Spaces Dug . | . . Terrain Destroyed . | . . Melee . | . . Projectile . | . . AOE . | . . Terrain Rammed . | . . Walls Destroyed . | . . Machines Disabled . | . . Actions | -11 -10 --------- Run | Yrd Mat Total 701 | 98 603 Wait 7 | . 7 Move 543 | 79 464 Hop . | . . Pick Up 40 | 9 31 Fast Attach . | . . Attach 13 | 5 8 Detach 1 | . 1 Swap 13 | . 13 Drop 15 | . 15 Fire 66 | 5 61 Melee . | . . Ram . | . . Kick 3 | . 3 Crush . | . . Escape Stasis . | . . Rewire . | . . Trap . | . . Miscellaneous . | . . Route ------- -11/Scrapyard -10/Materials (discovered 2 exits: [*Mat] / [*Min]) History --------- Turn | Location | Event 2 | -11/Scrapyard | Met Revision 17 75 | -11/Scrapyard | Discovered new exit (range 8) 106 | -11/Scrapyard | Entered Materials 214 | -10/Materials | Discovered new exit (range 9) 318 | -10/Materials | Build established: Mutant 976 | -10/Materials | Build established: Scavenger-Mutant 1056 | -10/Materials | Core integrity fell below 50% 1133 | -10/Materials | Core integrity fell below 20% 1133 | -10/Materials | Discovered new exit (range 15) 1138 | -10/Materials | Destroyed by G-34 Mercenary with Small Laser Last Messages --------------- O-16 Technician uses terminal to summon reinforcements. ALERT: Hostiles spotted, dispatching reinforcements to Terminal M001. O-16 Technician locks terminal. K-01 Serf collects debris. G-34 Mercenary destroyed. K-01 Serf cleans the Terminal. Acquired 13 matter. Acquired 17 matter. K-01 Serf collects debris. K-01 Serf cleans the Terminal. K-01 Serf collects debris. Sml. Laser destroyed. Acquired 36 matter. Ion Engine destroyed. K-01 Serf collects debris. EXIT=FOUND Aluminum Leg destroyed. [Achievement: First Step to Greatness] Map ----- +----------------------------------------------------+ | ????????????????????????????????????? | | ????????????????????????????????????? | | ????????????????????????????????????? | | ?????????? ????????????????#???????? | | ?????????# ???????????????# ??????? | | ?????????# ???????????????# ?????? | | ?????????# ???????????????# ?#### | | ?????????# #####?#######+## ## | | ?????????# !? | | ?????????# !? | | ?????????# ? | | ?????????# #?????###+##" | | ?????????# #??????????#" | | ?????????# """ #??????????#""" | | ?????????+ """"" #??????????#### | | ?????????# """"" #?????????????? | | ?????????# " """"" #?????????????? | | ?????????# T """ #?????????????? | | ?????????# " = #?????????????? | | ?????????# !%= #######???????? | | ?????????# =! +?? | | ?????????# * #######+#########??????? | | ?????????#* [#?# #???????????? | | ?????????#%= #?# """ #???????????? | | ?????????#= #?# """ ############? | | ?????????# @#?# """ ## ## | | ?????????# g #?# ## """ """ # | | ?????????# gg#?# """ ## """ """ # | | ?????????# #?# """ ## """ """ / | | ?????????#g #?# """ ## """ # | | ?????????+ #?# ## """ # | | ?????????# #?#######+### # | | ?????????# #??# # #?# # | | ?????????# #??# # #?########### | | ?????????# #??# # #???????????# | | ?????????# #??# # #???######### | | ?????????# #??# # #???# T # | | ?????????+ ???# # #???# = # | | ?????????# ???# # #???# + | | ?????????# < ???###+## ##### =![ # | | ?????????? ?????# +! ! # | | ??????????????????####### #!=! ### | | ????????????????????????# ########?# | | ????????????????????????# | | ????????????????????????##########??? | | ????????????????????????????????????? | | ????????????????????????????????????? | | ????????????????????????????????????? | | | | | +----------------------------------------------------+ Best States ------------- Heat Dissipation 35 Energy Generation 10 Energy Capacity 250 Matter Stores 500 Matter Capacity 500 Sight Range 18 Terrain Scan Density 10 Evasion (%) 55 Item Schematics ----------------- None Robot Schematics ------------------ None Fabricated ------------ Nothing Alien Tech Used ----------------- None Achievements -------------- First Step to Greatness Storm Trooper Uninvited Guest Challenges ------------ None Game ------ Seed SpliceThunderRedistributor Manual? 0 Play Time 00:39:48 Cumulative 0.6 hours Start 2024.11.10 @ 16:40:10 End 2024.11.10 @ 17:20:03 Sessions 1 Manual Loads 0 Difficulty Rogue Special Mode None Game No. 1 Rogue 1 Adventurer 0 Explorer 0 Win Type - Total 0 Types 0/0/0/0/0/0/0/0/0 Lore% 0 Gallery% 1 Achievement% 1 Wizard Run 0 Options --------- Layout 1 ASCII 0 Keyboard 0 Movement Arrows Keybinds 0 Fullscreen 0 Font 42/SmallcapsGlow Map View 25x17 Zoom Use 61% Tactical HUD 0 Map Filters NONE Filters NONE Steam 1 RUN: 5179112f-390b-4291-acae-b59b701fc5b8